bitfinex/quotes_SOLUSD_20251125
["timestamp","ask_amount","ask_price","bid_price","bid_amount"]
[1764051071513,10.12960296,138.69,138.67,3.9]
[1764051073804,2.23918931,138.7,138.68,0.72]
[1764051074404,10.12899629,138.7,138.68,0.72]
[1764051075129,2.23918931,138.7,138.68,0.72]
[1764051075415,10.12903723,138.7,138.68,0.72]
[1764051075912,10.12903723,138.7,138.67,11.11130018]
[1764051077920,10.12903723,138.7,138.68,0.72]
[1764051080521,9.44903723,138.7,138.68,0.72]
[1764051081509,2.23918931,138.69,138.68,0.72]
[1764051082519,3.49997546,138.69,138.68,0.72]
[1764051083126,3.49997546,138.7,138.68,0.72]
[1764051085426,10.70978891,138.7,138.68,0.72]
[1764051085629,11.41978891,138.7,138.68,0.72]
[1764051086130,7.91981345,138.7,138.68,0.72]
[1764051086317,11.41978891,138.7,138.68,0.72]
[1764051086518,10.70978891,138.7,138.68,0.72]
[1764051087227,4.20997546,138.7,138.68,0.72]
[1764051087424,3.49997546,138.7,138.68,1.00432314]
[1764051087728,24.22837563,138.71,138.69,0.71]
[1764051087729,27.72835109,138.71,138.69,0.71]
[1764051089416,27.01835109,138.71,138.69,0.71]
[1764051090235,27.72835109,138.71,138.69,0.71]
[1764051092237,27.72835109,138.71,138.68,9.80426806]
[1764051092740,3.49997546,138.69,138.68,9.80426806]
[1764051097322,3.49997546,138.7,138.68,17.01510111]
[1764051097641,3.49997546,138.7,138.69,0.71]
[1764051098634,3.49997546,138.7,138.68,17.01510111]
[1764051098838,3.49997546,138.7,138.68,9.80426806]
[1764051099925,16.308864,138.71,138.68,9.09426806]
[1764051100126,3.49997546,138.7,138.69,0.71]
[1764051101749,3.49997546,138.7,138.68,9.80426806]
[1764051102153,3.49997546,138.7,138.69,0.71]
[1764051102451,3.49997546,138.7,138.68,9.80426806]
[1764051102653,3.49997546,138.7,138.69,3.18]
[1764051105168,4.20997546,138.73,138.7,8.80994492]
[1764051105331,0.71,138.74,138.71,3.46432314]
[1764051105532,16.308864,138.74,138.71,1.47132314]
[1764051105736,16.308864,138.73,138.72,0.71]
[1764051105942,4.20997546,138.75,138.72,3.18]
[1764051106252,19.80883946,138.74,138.72,2.02162785]
[1764051107341,4.20997546,138.75,138.72,2.02162785]
[1764051107967,4.20997546,138.75,138.72,2.69162785]
[1764051108167,0.71,138.75,138.72,2.69162785]
[1764051108372,4.20997546,138.75,138.72,2.69162785]
[1764051109872,4.20997546,138.75,138.72,9.90017081]
[1764051111266,4.20997546,138.74,138.72,2.02162785]
[1764051111474,16.308864,138.72,138.66,0.67]
[1764051111771,16.308864,138.72,138.67,12.27426806]
[1764051111772,3.49997546,138.68,138.67,12.27426806]
[1764051111970,3.49997546,138.69,138.67,19.20131003]
[1764051112152,3.49997546,138.69,138.67,19.87131003]
[1764051112683,3.49997546,138.69,138.68,0.28432314]
[1764051114382,11.37039921,138.69,138.65,8.80994492]
[1764051114677,3.49997546,138.67,138.66,3.18]
[1764051116379,4.15997546,138.67,138.66,3.18]
[1764051116772,3.49997546,138.67,138.66,3.18]
[1764051119378,11.4009695,138.68,138.66,3.18]
[1764051119775,11.4009695,138.68,138.65,8.80994492]
[1764051119966,4.18997546,138.68,138.65,19.87232982]
[1764051120584,11.40083302,138.68,138.65,12.65994492]
[1764051121370,4.18997546,138.67,138.65,11.98994492]
[1764051121575,3.49997546,138.67,138.65,11.98994492]
[1764051122272,3.49997546,138.67,138.65,8.80994492]
[1764051122474,3.49997546,138.67,138.65,11.98994492]
[1764051122785,11.40083302,138.68,138.65,12.65994492]
[1764051124075,10.71083302,138.68,138.65,11.98994492]
[1764051124285,0.69,138.67,138.65,11.98994492]
[1764051124787,33.07478454,138.68,138.65,11.98994492]
[1764051125873,4.18997546,138.67,138.65,11.98994492]
[1764051126181,11.40142253,138.67,138.65,3.18]
[1764051126386,4.18997546,138.66,138.65,3.18]
[1764051126773,3.49997546,138.66,138.65,3.18]
[1764051127989,4.18997546,138.67,138.65,3.18]
[1764051129000,4.18997546,138.66,138.65,3.18]
[1764051129291,4.18997546,138.66,138.63,3.18]
[1764051129593,3.49997546,138.64,138.63,3.18]
[1764051129967,4.18997546,138.64,138.61,11.98994492]
[1764051130168,4.18997546,138.63,138.61,11.98994492]
[1764051130397,7.90347477,138.63,138.61,3.18]
[1764051130568,0.69,138.62,138.61,3.18]
[1764051130969,4.18997546,138.62,138.6,0.1]
[1764051131485,0.69,138.61,138.6,0.1]
[1764051131784,9.59994492,138.61,138.6,0.1]
[1764051132165,16.8144316,138.61,138.6,0.1]
[1764051136297,20.31440706,138.61,138.6,0.1]
[1764051137375,16.8144316,138.61,138.6,0.1]
[1764051140701,20.31440706,138.61,138.6,0.1]
[1764051144583,19.05771125,138.61,138.6,0.1]
[1764051149914,16.8144316,138.61,138.6,0.1]
[1764051150092,22.23771125,138.61,138.6,0.1]
[1764051161019,16.308864,138.59,138.58,0.1]
[1764051161195,21.73214365,138.59,138.58,0.1]
[1764051161395,22.38214365,138.59,138.58,0.1]
[1764051161598,25.27472057,138.59,138.58,0.1]
[1764051162903,32.49024838,138.59,138.58,0.1]
[1764051168126,30.24696873,138.59,138.58,0.1]
[1764051168305,32.49024838,138.59,138.58,0.1]
[1764051175832,32.49024838,138.59,138.58,1e-08]
[1764051181240,0.66,138.58,138.56,0.2]
[1764051181533,5.42327965,138.57,138.56,0.2]
[1764051181838,19.20185933,138.57,138.56,0.2]
[1764051182024,25.28513898,138.57,138.56,0.2]
[1764051182818,31.84170822,138.57,138.56,0.2]
[1764051183123,32.50170822,138.57,138.56,0.2]
[1764051185136,29.32170822,138.57,138.56,0.2]
[1764051185324,32.50170822,138.57,138.56,0.2]
[1764051186319,29.32170822,138.57,138.56,0.2]
[1764051186541,32.50170822,138.57,138.56,0.2]
[1764051193353,32.50170822,138.57,138.55,0.1]
[1764051193655,2.90327965,138.56,138.55,0.1]
[1764051194024,5.79648423,138.56,138.55,0.1]
[1764051195129,16.19357429,138.56,138.55,0.1]
[1764051204546,17.45823247,138.56,138.55,0.1]
[1764051207663,13.95029464,138.56,138.55,0.1]
[1764051207865,23.52595406,138.56,138.55,0.77]
[1764051209157,16.308864,138.56,138.55,0.77]
[1764051209345,7.21679359,138.57,138.55,0.77]
[1764051209754,16.308864,138.56,138.55,0.77]
[1764051211954,7.21628269,138.58,138.55,0.77]
[1764051212250,16.308864,138.56,138.55,0.77]
[1764051216964,23.52595406,138.56,138.55,0.77]
[1764051223777,16.308864,138.56,138.55,0.77]
[1764051224557,23.52595406,138.56,138.55,0.77]
[1764051225359,16.308864,138.56,138.55,0.77]
[1764051225567,23.52595406,138.56,138.55,0.77]
[1764051226780,23.52595406,138.56,138.55,0.1]
[1764051227462,24.20595406,138.56,138.55,0.1]
[1764051227779,23.52595406,138.56,138.55,0.1]
[1764051232563,24.20595406,138.56,138.55,0.1]
[1764051233283,23.52595406,138.56,138.55,0.1]
[1764051234770,26.41853098,138.56,138.55,0.1]
[1764051235472,30.63646881,138.56,138.55,0.1]
[1764051237584,33.81646881,138.56,138.55,0.1]
[1764051242586,33.81646881,138.56,138.55,1e-08]
[1764051251094,33.81646881,138.56,138.54,0.2]
[1764051251395,4.22793783,138.55,138.54,0.2]
[1764051251882,7.12135169,138.55,138.54,0.2]
[1764051254195,14.33896266,138.55,138.54,0.2]
[1764051258902,10.11102483,138.55,138.54,0.2]
[1764051259102,3.50793783,138.55,138.54,0.2]
[1764051259281,7.12114241,138.55,138.54,0.2]
[1764051260403,14.33875338,138.55,138.54,0.2]
[1764051261293,17.51875338,138.55,138.54,0.2]
[1764051263284,17.48875338,138.55,138.54,0.2]
[1764051264581,16.22655113,138.55,138.54,0.2]
[1764051276703,15.53655113,138.55,138.54,0.2]
[1764051277497,16.22655113,138.55,138.54,0.2]
[1764051282804,10.11081555,138.55,138.54,0.87]
[1764051283122,12.64334655,138.55,138.54,0.2]
[1764051297236,13.36334655,138.55,138.54,0.2]
[1764051297443,12.64334655,138.55,138.54,0.2]
[1764051299333,13.36334655,138.55,138.54,0.2]
[1764051299748,13.36334655,138.55,138.54,0.05]
[1764051301046,16.308864,138.53,138.52,0.1]
[1764051301258,16.308864,138.53,138.52,0.77]
[1764051301428,18.55459958,138.53,138.52,0.77]
[1764051302225,18.55459958,138.53,138.52,0.1]
[1764051303035,25.77325257,138.53,138.52,0.77]
[1764051304157,16.308864,138.53,138.52,0.77]
[1764051305627,25.77325257,138.53,138.52,0.77]
[1764051306449,25.77325257,138.53,138.52,0.1]
[1764051306633,25.77325257,138.53,138.52,0.77]
[1764051307951,25.77325257,138.53,138.52,0.1]
[1764051308829,25.77325257,138.53,138.52,0.77]
[1764051310836,25.77325257,138.53,138.52,0.1]
[1764051311357,25.77325257,138.53,138.52,0.77]
[1764051312852,23.52751699,138.53,138.52,0.77]
[1764051313060,25.77325257,138.53,138.52,0.77]
[1764051315946,25.77325257,138.53,138.52,0.1]
[1764051319747,25.77325257,138.53,138.52,0.77]
[1764051322567,25.77325257,138.53,138.52,0.1]
[1764051322758,25.77325257,138.53,138.52,0.77]
[1764051323572,25.77325257,138.53,138.52,0.1]
[1764051324790,16.308864,138.53,138.52,0.77]
[1764051324970,18.55459958,138.53,138.52,0.77]
[1764051325360,18.55459958,138.53,138.52,0.1]
[1764051326270,26.45325257,138.53,138.52,0.1]
[1764051326784,27.71730108,138.53,138.52,0.1]
[1764051327152,27.03730108,138.53,138.52,0.1]
[1764051327360,27.71730108,138.53,138.52,0.1]
[1764051327892,19.81864809,138.53,138.52,0.77]
[1764051328054,19.81864809,138.53,138.52,0.1]
[1764051331184,7.22067537,138.56,138.52,0.77]
[1764051331490,3.50978409,138.56,138.52,51.05432314]
[1764051331984,3.50978409,138.56,138.53,0.67]
[1764051332189,3.50978409,138.56,138.53,3.85]
[1764051332696,10.72693996,138.56,138.54,0.67]
[1764051333774,11.40693996,138.56,138.53,3.85]
[1764051335484,10.72693996,138.56,138.54,0.67]
[1764051337193,0.68,138.59,138.54,58.17231579]
[1764051337396,3.50978409,138.58,138.54,58.17231579]
[1764051337596,3.50978409,138.58,138.55,0.67]
[1764051337793,4.18978409,138.59,138.55,7.8873134]
[1764051337979,10.72534041,138.59,138.55,7.8873134]
[1764051338183,10.72534041,138.59,138.56,0.67]
[1764051338388,11.40534041,138.59,138.56,0.67]
[1764051338911,3.50978409,138.58,138.56,0.67]
[1764051339110,7.89555632,138.59,138.52,8.90994492]
[1764051339111,16.308864,138.56,138.52,3.95]
[1764051339277,3.50978409,138.53,138.52,3.28]
[1764051339477,3.50978409,138.53,138.52,0.1]
[1764051339679,4.18978409,138.53,138.52,0.1]
[1764051339990,3.50978409,138.53,138.52,0.1]
[1764051341284,11.40843708,138.53,138.52,0.1]
[1764051342584,3.50978409,138.53,138.52,0.1]
[1764051349710,27.03730108,138.53,138.52,0.1]
[1764051350309,27.71730108,138.53,138.52,0.1]
[1764051351212,27.03730108,138.53,138.52,0.1]
[1764051352811,23.52751699,138.53,138.52,0.1]
[1764051357112,24.20751699,138.53,138.52,0.1]
[1764051357616,23.52751699,138.53,138.52,0.1]
[1764051359516,24.20751699,138.53,138.52,0.1]
[1764051359809,16.308864,138.53,138.52,0.1]
[1764051360117,0.68,138.53,138.52,0.1]
[1764051360518,11.40836629,138.54,138.52,0.1]
[1764051363904,4.18978409,138.53,138.52,0.1]
[1764051365003,11.40843708,138.53,138.52,0.1]
[1764051365621,18.09822117,138.53,138.52,0.1]
[1764051366394,36.14485366,138.53,138.47,0.2]
[1764051366724,3.50978409,138.48,138.47,0.2]
[1764051367113,11.41104347,138.48,138.47,0.2]
[1764051369520,27.71990747,138.48,138.47,0.2]
[1764051369710,11.41104347,138.48,138.47,0.2]
[1764051371741,14.30613267,138.48,138.47,0.2]
[1764051372254,16.308864,138.47,138.46,0.1]
[1764051372553,27.18843218,138.47,138.46,0.1]
[1764051373430,34.41021307,138.47,138.46,0.1]
[1764051374439,52.46466529,138.47,138.44,0.1]
[1764051374616,3.50978409,138.45,138.44,0.1]
[1764051374817,22.99864809,138.45,138.44,0.1]
[1764051375035,23.67864809,138.45,138.44,0.1]
[1764051375738,30.90147221,138.45,138.44,0.1]
[1764051376242,16.308864,138.43,138.42,0.1]
[1764051376444,22.99864809,138.43,138.42,0.1]
[1764051376631,23.67864809,138.43,138.41,0.1]
[1764051376830,4.18978409,138.42,138.41,0.1]
[1764051377029,7.08592136,138.42,138.41,0.1]
[1764051377546,14.31031089,138.42,138.41,0.1]
[1764051379330,17.82009498,138.42,138.4,0.1]
[1764051379646,16.308864,138.38,138.33,0.68]
[1764051379844,3.50978409,138.36,138.33,0.68]
[1764051380464,0.68,138.36,138.33,0.68]
[1764051380648,3.50978409,138.36,138.33,0.68]
[1764051382550,10.73691174,138.37,138.33,0.68]
[1764051383446,3.50978409,138.37,138.33,0.68]
[1764051385453,10.73686457,138.37,138.33,0.68]
[1764051385642,11.43686457,138.37,138.33,0.68]
[1764051385953,3.50978409,138.36,138.33,0.68]
[1764051386147,3.50978409,138.35,138.33,0.68]
[1764051386339,4.20978409,138.35,138.32,3.18]
[1764051386533,3.50978409,138.35,138.33,0.72]
[1764051387650,3.50978409,138.35,138.32,3.18]
[1764051387854,4.20978409,138.34,138.31,3.9]
[1764051388634,2.95187779,138.34,138.31,3.9]
[1764051389251,2.25187779,138.33,138.31,3.9]
[1764051389450,2.25187779,138.33,138.31,3.18]
[1764051389654,2.25187779,138.33,138.31,3.9]
[1764051390262,2.25187779,138.33,138.31,3.18]
[1764051390481,0.7,138.33,138.31,3.18]
[1764051390651,2.25187779,138.32,138.31,3.18]
[1764051390839,2.95187779,138.33,138.31,3.18]
[1764051391036,2.25187779,138.33,138.31,3.18]
[1764051391241,2.25187779,138.33,138.31,3.9]
[1764051392241,2.95187779,138.34,138.31,3.9]
[1764051394961,2.25187779,138.34,138.32,0.72]
[1764051395161,18.56074179,138.35,138.32,0.72]
[1764051395366,19.26074179,138.35,138.32,0.72]
[1764051395865,2.25187779,138.34,138.32,0.72]
[1764051396065,2.25187779,138.34,138.31,3.9]
[1764051397655,2.25187779,138.33,138.31,3.9]
[1764051398844,2.95187779,138.34,138.31,3.9]
[1764051399038,18.56074179,138.35,138.32,0.72]
[1764051399257,2.25187779,138.38,138.33,52.25187779]
[1764051399547,2.25187779,138.37,138.34,3.9]
[1764051399869,2.95187779,138.37,138.34,3.9]
[1764051400365,2.25187779,138.35,138.34,3.18]
[1764051400668,0.7,138.36,138.33,3.18]
[1764051400859,2.25187779,138.36,138.33,3.18]
[1764051401165,2.25187779,138.36,138.34,0.72]
[1764051403566,2.25187779,138.36,138.33,3.18]
[1764051403567,2.25187779,138.36,138.33,10.40907952]
[1764051403871,2.25187779,138.36,138.34,0.72]
[1764051405254,2.95187779,138.36,138.33,3.9]
[1764051405458,2.25187779,138.36,138.33,3.18]
[1764051405772,2.25187779,138.36,138.34,0.72]
[1764051406470,2.95187779,138.37,138.34,0.72]
[1764051406775,19.26074179,138.38,138.34,1.00432314]
[1764051406970,18.56074179,138.38,138.35,0.72]
[1764051407353,16.308864,138.38,138.35,0.72]
[1764051407755,18.56074179,138.38,138.35,0.72]
[1764051408254,2.95187779,138.39,138.35,7.9480035]
[1764051408678,2.95187779,138.39,138.36,0.72]
[1764051409363,2.25187779,138.37,138.34,17.04274934]
[1764051409670,2.25187779,138.37,138.35,0.72]
[1764051409871,0.7,138.38,138.34,17.04274934]
[1764051410064,2.25187779,138.37,138.34,17.04274934]
[1764051410264,2.25187779,138.37,138.35,0.72]
[1764051410977,16.308864,138.4,138.35,0.72]
[1764051411174,16.308864,138.4,138.36,12.27426806]
[1764051411362,16.308864,138.39,138.36,12.27426806]
[1764051411676,16.308864,138.41,138.37,2.97187779]
[1764051411876,2.95187779,138.42,138.37,2.97187779]
[1764051411877,2.95187779,138.42,138.38,7.22647781]
[1764051412057,2.95187779,138.42,138.39,3.18]
[1764051412377,2.95187779,138.42,138.39,3.9]
[1764051412958,2.95187779,138.42,138.39,3.18]
[1764051413291,2.95187779,138.42,138.39,3.87]
[1764051413867,2.95187779,138.42,138.39,3.18]
[1764051414067,32.617728,138.44,138.4,0.69]
[1764051414385,2.25187779,138.44,138.4,0.69]
[1764051414588,10.18492622,138.45,138.4,0.69]
[1764051414883,2.25187779,138.44,138.4,0.69]
[1764051415059,2.96187779,138.44,138.4,0.69]
[1764051415261,2.25187779,138.45,138.4,0.97432314]
[1764051415459,0.71,138.45,138.4,0.97432314]
[1764051415672,2.25187779,138.45,138.41,0.69]
[1764051415876,2.96187779,138.46,138.42,3.18]
[1764051416287,17.018864,138.47,138.43,0.69]
[1764051416467,18.56074179,138.47,138.43,0.69]
[1764051416669,19.26074179,138.47,138.43,0.69]
[1764051416978,2.95187779,138.46,138.43,0.69]
[1764051417360,2.95187779,138.45,138.42,3.18]
[1764051417561,0.7,138.46,138.43,0.68]
[1764051417768,2.25187779,138.45,138.43,0.68]
[1764051418185,2.95187779,138.46,138.43,0.68]
[1764051418682,2.95187779,138.46,138.43,0.62765921]
[1764051419284,18.56074179,138.47,138.43,7.85147844]
[1764051419487,19.26074179,138.47,138.43,7.85147844]
[1764051420062,2.95187779,138.46,138.43,0.62765921]
[1764051420980,2.25187779,138.46,138.43,7.85140343]
[1764051421279,2.95187779,138.48,138.44,0.96432314]
[1764051421488,2.95187779,138.48,138.45,3.18]
[1764051421784,2.95187779,138.48,138.45,3.86]
[1764051422189,2.25187779,138.47,138.45,3.18]
[1764051422383,2.25187779,138.46,138.45,3.18]
[1764051422587,2.95187779,138.46,138.45,3.18]
[1764051422888,2.95187779,138.46,138.43,3.18]
[1764051423084,2.25187779,138.45,138.43,3.18]
[1764051423264,2.95187779,138.46,138.43,3.18]
[1764051423587,2.95187779,138.46,138.43,3.86]
[1764051423961,2.25187779,138.46,138.43,3.86]
[1764051424665,2.25187779,138.46,138.43,11.08385863]
[1764051424867,2.95187779,138.46,138.43,11.08385863]
[1764051426466,2.95187779,138.45,138.43,3.18]
[1764051427091,2.25187779,138.45,138.43,3.18]
[1764051427268,2.25187779,138.45,138.43,3.86]
[1764051427891,2.95187779,138.45,138.43,3.18]
[1764051428074,2.25187779,138.45,138.43,3.18]
[1764051428389,2.95187779,138.46,138.43,11.08383654]
[1764051428794,2.25187779,138.46,138.43,10.40383654]
[1764051428976,2.25187779,138.46,138.44,0.68]
[1764051429687,2.25187779,138.46,138.43,11.08383654]
[1764051431180,2.95187779,138.46,138.43,11.08383654]
[1764051431595,2.95187779,138.45,138.43,3.18]
[1764051432897,2.25187779,138.46,138.43,11.08382869]
[1764051433075,2.25187779,138.48,138.44,0.68]
[1764051433772,0.7,138.47,138.44,0.68]
[1764051434576,0.7,138.47,138.43,10.40382869]
[1764051434808,2.25187779,138.46,138.43,11.08382869]
[1764051435197,23.53033325,138.5,138.45,52.25187779]
[1764051435383,0.7,138.53,138.47,52.53620093]
[1764051435582,2.95187779,138.53,138.48,0.68]
[1764051435892,2.25187779,138.52,138.49,3.18]
[1764051436199,2.95187779,138.52,138.49,3.18]
[1764051436575,2.95187779,138.52,138.49,3.86]
[1764051436894,2.95187779,138.52,138.49,11.08041961]
[1764051437480,2.25187779,138.53,138.5,0.68]
[1764051437685,0.9,138.54,138.5,0.68]
[1764051437891,3.15187779,138.54,138.5,0.68]
[1764051438672,2.45187779,138.54,138.5,7.89994753]
[1764051438871,2.95187779,138.53,138.5,7.89994753]
[1764051440707,0.7,138.53,138.5,7.89994753]
[1764051441003,3.15187779,138.54,138.5,7.89994753]
[1764051442012,3.15187779,138.54,138.51,10.39967826]
[1764051443503,0.67,138.53,138.51,3.18]
[1764051446605,2.25187779,138.52,138.47,9.09426806]
[1764051446811,2.25187779,138.5,138.49,3.18]
[1764051447182,2.25187779,138.5,138.47,8.80994492]
[1764051447183,2.92187779,138.5,138.47,8.80994492]
[1764051447388,2.92187779,138.49,138.48,3.18]
[1764051451105,4.1802444,138.5,138.48,3.18]
[1764051451987,0.67,138.49,138.48,3.18]
[1764051452702,3.5102444,138.5,138.48,3.18]
[1764051453005,4.1802444,138.5,138.48,3.18]
[1764051457407,0.67,138.49,138.48,3.18]
[1764051457908,4.1802444,138.5,138.48,3.18]
[1764051460314,3.5102444,138.5,138.48,3.18]
[1764051460495,4.1802444,138.49,138.48,3.18]
[1764051460813,0.67,138.49,138.46,3.18]
[1764051461000,0.67,138.48,138.46,3.18]
[1764051461811,4.1802444,138.48,138.46,3.18]
[1764051462613,0.67,138.48,138.46,3.18]
[1764051464713,10.73124731,138.49,138.46,3.18]
[1764051464914,0.67,138.48,138.46,3.18]
[1764051467501,7.89130429,138.48,138.46,3.18]
[1764051468305,0.67,138.48,138.46,3.18]
[1764051470726,10.73119001,138.49,138.46,3.18]
[1764051471022,11.40119001,138.49,138.46,3.18]
[1764051471322,10.73119001,138.49,138.46,3.18]
[1764051471527,0.67,138.48,138.46,3.18]
[1764051471916,4.1802444,138.48,138.46,3.18]
[1764051472118,11.40166702,138.48,138.46,3.18]
[1764051472324,16.308864,138.45,138.39,11.44302277]
[1764051472504,19.8191084,138.45,138.4,23.43550704]
[1764051472818,20.4891084,138.45,138.4,23.43550704]
[1764051472995,20.4891084,138.45,138.41,0.66]
[1764051473194,16.998864,138.45,138.41,4.1702444]
[1764051473824,16.998864,138.45,138.42,0.66]
[1764051474519,16.998864,138.45,138.43,3.18]
[1764051478898,10.73257308,138.46,138.43,3.89]
[1764051478899,0.66,138.46,138.43,3.89]
[1764051479507,0.66,138.46,138.43,3.18]
[1764051480404,7.88236399,138.46,138.43,3.18]
[1764051480607,0.66,138.46,138.43,10.40378957]
[1764051480909,20.4791084,138.48,138.44,0.71]
[1764051481094,0.66,138.47,138.44,0.71]
[1764051482123,11.39202972,138.47,138.44,0.71]
[1764051482856,0.66,138.47,138.44,7.93319118]
[1764051483142,0.66,138.5,138.46,3.5102444]
[1764051483335,0.66,138.49,138.47,3.18]
[1764051486938,19.8191084,138.5,138.47,11.11175067]
[1764051487231,16.308864,138.51,138.48,0.71]
[1764051487433,0.66,138.52,138.48,4.2202444]
[1764051487640,10.72929502,138.53,138.48,4.2202444]
[1764051487641,0.66,138.51,138.48,4.2202444]
[1764051487833,0.66,138.52,138.49,0.71]
[1764051488067,0.2,138.54,138.5,6.6902444]
[1764051488214,0.86,138.54,138.5,6.6902444]
[1764051488413,0.86,138.54,138.5,7.4002444]
[1764051488629,0.86,138.54,138.51,0.71]
[1764051488829,0.2,138.54,138.52,7.21917412]
[1764051489141,0.2,138.54,138.53,3.18]
[1764051489316,0.2,138.54,138.53,3.89]
[1764051489714,0.2,138.54,138.53,3.18]
[1764051490238,0.2,138.54,138.53,3.89]
[1764051491055,0.2,138.54,138.53,23.71316545]
[1764051492941,0.2,138.54,138.53,73.71316545]
[1764051494149,0.2,138.54,138.53,19.49292105]
[1764051494855,0.2,138.54,138.53,16.31292105]
[1764051495022,0.2,138.54,138.53,19.49292105]
[1764051495223,0.2,138.54,138.51,71.84300794]
[1764051495434,4.3702444,138.54,138.52,3.18]
[1764051495736,3.5102444,138.53,138.51,3.18]
[1764051495949,4.1702444,138.52,138.51,3.18]
[1764051497332,4.1702444,138.52,138.49,3.18]
[1764051497537,4.1702444,138.51,138.49,3.18]
[1764051497745,0.66,138.51,138.49,3.18]
[1764051499953,0.2,138.54,138.5,4.2202444]
[1764051500252,0.2,138.54,138.51,12.60451246]
[1764051500432,0.2,138.54,138.52,6.6902444]
[1764051500744,0.2,138.54,138.52,13.90916891]
[1764051501155,0.2,138.54,138.53,13.31451246]
[1764051501324,0.2,138.54,138.53,83.13362086]
[1764051501522,0.2,138.6,138.58,3.5102444]
[1764051501729,0.2,138.6,138.59,3.18]
[1764051502428,0.86,138.6,138.59,3.18]
[1764051504733,17.168864,138.6,138.59,3.18]
[1764051506146,0.86,138.6,138.59,3.18]
[1764051506347,0.86,138.6,138.53,17.03072929]
[1764051506348,27.89411561,138.6,138.54,4.41456754]
[1764051506546,4.2202444,138.59,138.55,10.39741034]
[1764051506934,0.71,138.58,138.55,10.39741034]
[1764051507132,0.71,138.59,138.55,14.52765474]
[1764051507334,0.71,138.58,138.55,14.52765474]
[1764051507547,0.71,138.58,138.55,13.90765474]
[1764051507840,0.71,138.58,138.55,10.39741034]
[1764051509563,0.71,138.58,138.55,13.90765474]
[1764051510548,0.71,138.58,138.55,12.64074903]
[1764051510939,0.71,138.58,138.55,13.26074903]
[1764051511338,0.71,138.59,138.55,13.26074903]
[1764051511540,0.71,138.59,138.56,2.24333869]
[1764051511753,0.71,138.59,138.55,13.26074903]
[1764051512162,0.71,138.59,138.55,11.01741034]
[1764051512354,10.1689586,138.59,138.55,10.39741034]
[1764051512762,0.71,138.58,138.55,10.39741034]
[1764051513468,0.71,138.58,138.55,11.01741034]
[1764051514368,26.67737167,138.6,138.55,13.26074903]
[1764051514546,0.71,138.59,138.55,13.26074903]
[1764051514957,0.71,138.59,138.55,12.64074903]
[1764051515155,0.71,138.59,138.55,13.26074903]
[1764051515647,0.71,138.59,138.56,2.86333869]
[1764051516046,0.71,138.59,138.56,2.24333869]
[1764051516271,0.71,138.59,138.55,13.26074903]
[1764051516977,0.71,138.59,138.56,2.24333869]
[1764051517466,0.71,138.59,138.56,9.46017637]
[1764051517651,0.71,138.59,138.56,10.08017637]
[1764051517852,0.2,138.6,138.58,2.24333869]
[1764051518088,0.2,138.6,138.59,64.51760675]
[1764051518447,0.2,138.6,138.59,65.13760675]
[1764051519376,0.2,138.6,138.59,71.73313456]
[1764051519586,0.2,138.6,138.59,72.35313456]
[1764051521262,0.2,138.6,138.59,22.35313456]
[1764051522466,0.2,138.6,138.59,72.35313456]
[1764051536564,0.2,138.6,138.59,69.17313456]
[1764051536765,0.2,138.6,138.59,72.35313456]
[1764051537084,0.2,138.6,138.59,71.73313456]
[1764051538575,0.87,138.6,138.59,0.28432314]
[1764051538865,0.87,138.6,138.59,3.18]
[1764051540896,10.3283459,138.6,138.59,3.18]
[1764051541470,3.11333869,138.6,138.59,3.18]